fUSD/lending_fUSD_20260417
["ID","MTS","AMOUNT","RATE_DAILY","PERIOD"]
[420649979,1776426076908,161.0,8.22e-05,3]
[420649980,1776426137544,150.0,8.22e-05,2]
[420649981,1776426146894,8170.26,8.228e-05,2]
[420649982,1776426146921,10000.01,8.228e-05,2]
[420649983,1776426146948,10000.01,8.228e-05,2]
[420649984,1776426146975,10000.01,8.228e-05,2]
[420649985,1776426146999,10000.01,8.228e-05,2]
[420649986,1776426147026,10000.01,8.228e-05,2]
[420649987,1776426147052,10000.01,8.228e-05,2]
[420649988,1776426147082,10000.01,8.228e-05,2]
[420649989,1776426147111,10000.01,8.228e-05,2]
[420649990,1776426147137,10000.01,8.228e-05,2]
[420649991,1776426147165,5000.01,8.228e-05,2]
[420649992,1776426147193,5000.01,8.228e-05,2]
[420649993,1776426147218,5000.01,8.228e-05,2]
[420649994,1776426147244,5000.01,8.228e-05,2]
[420649995,1776426159440,-5409.45944048,8.228e-05,2]
[420649996,1776426159527,-2325.71384048,8.228e-05,2]
[420649997,1776426159550,-5348.58231904,8.228e-05,2]
[420649998,1776426187534,1191.0,8.228e-05,3]
[420649999,1776426194734,162.0,8.228e-05,3]
[420650000,1776426198383,565.3481,8.227e-05,2]
[420650001,1776426202909,150.0,8.22e-05,2]
[420650002,1776426219358,166.8,8.244e-05,2]
[420650004,1776426247817,1146.0,8.244e-05,3]
[420650005,1776426248324,3692.58,8.004e-05,2]
[420650006,1776426259751,2926.2819,8.013e-05,2]
[420650007,1776426259772,10000.01,8.013e-05,2]
[420650008,1776426259794,1430.5081,8.013e-05,2]
[420650010,1776426282333,150.0,8.22e-05,2]
[420650011,1776426311823,158.0,8.22e-05,3]
[420650012,1776426312475,1103.0,8.22e-05,3]
[420650013,1776426319783,162.0,8.22e-05,3]
[420650014,1776426346544,400.0,8.209e-05,2]
[420650015,1776426347123,335.0,8.209e-05,2]
[420650016,1776426347391,150.0,8.22e-05,2]
[420650017,1776426367397,1048.0,8.22e-05,3]
[420650018,1776426373021,162.0,8.22e-05,3]
[420650019,1776426384780,634.98340203,8.228e-05,2]
[420650021,1776426415552,1804.425907,8.178e-05,2]
[420650022,1776426418609,825.77066684,8.228e-05,2]
[420650023,1776426439695,3929.05,7.981e-05,2]
[420650024,1776426453975,200.0,8.023e-05,2]
[420650025,1776426465420,348.78002413,8.228e-05,2]
[420650026,1776426465442,420.58309613,8.228e-05,2]
[420650027,1776426487920,1015.0,8.22e-05,3]
[420650028,1776426488316,150.0,8.22e-05,2]
[420650029,1776426488401,250.0,8.27e-05,2]
[420650030,1776426491515,657.98,0.000165,30]
[420650031,1776426492347,162.0,8.22e-05,3]
[420650032,1776426507139,2426.93,8.227e-05,2]
[420650034,1776426545268,964.0,8.22e-05,3]
[420650035,1776426549246,-200.0,8.32e-05,2]
[420650036,1776426549274,-250.0,8.409e-05,2]
[420650037,1776426549308,-192.54,8.498e-05,2]
[420650038,1776426549337,-150.0,8.52e-05,2]
[420650039,1776426549367,-1200.0,8.589e-05,2]
[420650040,1776426549393,-150.0,8.589e-05,2]
[420650041,1776426549422,-52471.1527,8.589e-05,2]
[420650042,1776426549448,-1537.15856,8.59e-05,2]
[420650043,1776426554321,150.0,8.22e-05,2]
[420650044,1776426568566,162.0,8.22e-05,3]
[420650045,1776426574006,3643.89797762,0.000165,30]
[420650059,1776426633623,-696.09491183,8.32e-05,2]
[420650060,1776426633634,-539.0206703,8.32e-05,2]
[420650061,1776426633741,-2900.77099067,8.32e-05,2]
[420650062,1776426633751,-150.0,8.52e-05,2]
[420650063,1776426633760,-300.0,8.589e-05,2]
[420650064,1776426633770,-1200.0,8.589e-05,2]
[420650065,1776426633780,-3462.85144,8.59e-05,2]
[420650066,1776426633789,-4876.9769,8.59e-05,2]
[420650067,1776426634196,-2500.0,8.59e-05,2]
[420650068,1776426634206,-500.0,8.663e-05,2]
[420650069,1776426634215,-500.0,8.663e-05,2]
[420650070,1776426634225,-305.3792051,8.663e-05,2]
[420650071,1776426634234,-500.0,8.663e-05,2]
[420650072,1776426634244,-500.0,8.689e-05,2]
[420650073,1776426634253,-500.0,8.689e-05,2]
[420650074,1776426634263,-500.0,8.689e-05,2]
[420650075,1776426634272,-500.0,8.689e-05,2]
[420650076,1776426634282,-500.0,8.689e-05,2]
[420650077,1776426634291,-500.0,8.689e-05,2]
[420650078,1776426634301,-500.0,8.689e-05,2]
[420650079,1776426634310,-500.0,8.689e-05,2]
[420650080,1776426634320,-500.0,8.689e-05,2]
[420650081,1776426634329,-500.0,8.689e-05,2]
[420650082,1776426634338,-500.0,8.689e-05,2]
[420650083,1776426634347,-500.0,8.689e-05,2]
[420650084,1776426634356,-500.0,8.689e-05,2]
[420650085,1776426634366,-500.0,8.689e-05,2]
[420650086,1776426634375,-500.0,8.689e-05,2]
[420650087,1776426634385,-500.0,8.689e-05,2]
[420650088,1776426634395,-500.0,8.689e-05,2]
[420650089,1776426634404,-500.0,8.689e-05,2]
[420650090,1776426634413,-500.0,8.689e-05,2]
[420650091,1776426634423,-500.0,8.689e-05,2]
[420650092,1776426634432,-500.0,8.689e-05,2]
[420650093,1776426634441,-500.0,8.689e-05,2]
[420650094,1776426634450,-500.0,8.689e-05,2]
[420650095,1776426634460,-500.0,8.689e-05,2]
[420650096,1776426634469,-500.0,8.689e-05,2]
[420650097,1776426634479,-500.0,8.689e-05,2]
[420650098,1776426634488,-500.0,8.689e-05,2]
[420650099,1776426634499,-500.0,8.689e-05,2]
[420650100,1776426634508,-500.0,8.689e-05,2]
[420650101,1776426634517,-500.0,8.689e-05,2]
[420650102,1776426634526,-356.82555085,8.689e-05,2]
[420650103,1776426634537,-500.0,8.689e-05,2]
[420650104,1776426634547,-500.0,8.689e-05,2]
[420650105,1776426634558,-500.0,8.689e-05,2]
[420650106,1776426634567,-500.0,8.689e-05,2]
[420650107,1776426634577,-500.0,8.689e-05,2]
[420650108,1776426634587,-500.0,8.689e-05,2]
[420650109,1776426634596,-418.3089273,8.689e-05,2]
[420650110,1776426634606,-500.0,8.689e-05,2]
[420650111,1776426634615,-500.0,8.689e-05,2]
[420650112,1776426634625,-500.0,8.689e-05,2]
[420650113,1776426634634,-500.0,8.689e-05,2]
[420650114,1776426634645,-500.0,8.689e-05,2]
[420650115,1776426634655,-500.0,8.689e-05,2]
[420650116,1776426634665,-500.0,8.689e-05,2]
[420650117,1776426634675,-500.0,8.689e-05,2]
[420650118,1776426634684,-500.0,8.689e-05,2]
[420650119,1776426634693,-500.0,8.689e-05,2]
[420650120,1776426634703,-500.0,8.689e-05,2]
[420650121,1776426634712,-500.0,8.689e-05,2]
[420650122,1776426634722,-500.0,8.689e-05,2]
[420650123,1776426634732,-500.0,8.689e-05,2]
[420650124,1776426634741,-407.11107356,8.689e-05,2]
[420650125,1776426634750,-500.0,8.689e-05,2]
[420650126,1776426634759,-500.0,8.689e-05,2]
[420650127,1776426634769,-500.0,8.689e-05,2]
[420650128,1776426634778,-500.0,8.689e-05,2]
[420650129,1776426634788,-500.0,8.689e-05,2]
[420650130,1776426634797,-500.0,8.689e-05,2]
[420650131,1776426634806,-327.28,8.689e-05,2]
[420650132,1776426634816,-500.0,8.689e-05,2]
[420650133,1776426634825,-500.0,8.689e-05,2]
[420650134,1776426634834,-500.0,8.689e-05,2]
[420650135,1776426634843,-500.0,8.689e-05,2]
[420650136,1776426634852,-500.0,8.689e-05,2]
[420650137,1776426634861,-500.0,8.689e-05,2]
[420650138,1776426634871,-500.0,8.689e-05,2]
[420650139,1776426634880,-500.0,8.689e-05,2]
[420650140,1776426634890,-500.0,8.689e-05,2]
[420650141,1776426634899,-500.0,8.689e-05,2]
[420650142,1776426634908,-500.0,8.689e-05,2]
[420650143,1776426634917,-500.0,8.689e-05,2]
[420650144,1776426634927,-500.0,8.689e-05,2]
[420650145,1776426634936,-500.0,8.689e-05,2]
[420650146,1776426634945,-300.0,8.689e-05,2]
[420650147,1776426634955,-500.0,8.689e-05,2]
[420650148,1776426634964,-266.62505872,8.689e-05,2]
[420650149,1776426634975,-500.0,8.689e-05,2]
[420650150,1776426634986,-500.0,8.689e-05,2]
[420650151,1776426634996,-500.0,8.689e-05,2]
[420650152,1776426635005,-500.0,8.689e-05,2]
[420650153,1776426635014,-344.90983264,8.689e-05,2]
[420650154,1776426635024,-500.0,8.689e-05,2]
[420650155,1776426635036,-500.0,8.689e-05,2]
[420650156,1776426635046,-500.0,8.689e-05,2]
[420650157,1776426635056,-500.0,8.689e-05,2]
[420650158,1776426635066,-500.0,8.689e-05,2]
[420650159,1776426635075,-500.0,8.689e-05,2]
[420650160,1776426635085,-500.0,8.689e-05,2]
[420650161,1776426635095,-500.0,8.689e-05,2]
[420650162,1776426635105,-500.0,8.689e-05,2]
[420650163,1776426635114,-500.0,8.689e-05,2]
[420650164,1776426635124,-500.0,8.689e-05,2]
[420650165,1776426635136,-500.0,8.689e-05,2]
[420650166,1776426635145,-500.0,8.689e-05,2]
[420650167,1776426635155,-500.0,8.689e-05,2]
[420650168,1776426635166,-500.0,8.689e-05,2]
[420650169,1776426635177,-200.0,8.689e-05,2]
[420650170,1776426635188,-500.0,8.689e-05,2]
[420650171,1776426635197,-500.0,8.689e-05,2]
[420650172,1776426635207,-299.99,8.689e-05,2]
[420650173,1776426635216,-13982.47989164,8.689e-05,2]
[420650174,1776426635229,-11017.51010836,8.689e-05,2]
[420650175,1776426635239,-500.0,8.689e-05,2]
[420650176,1776426635248,-2465.5540031,8.69e-05,2]
[420650177,1776426635259,-11064.64983433,8.69e-05,2]
[420650178,1776426635270,-313.13150344,8.69e-05,2]
[420650179,1776426635281,-12119.47223389,8.69e-05,2]
[420650184,1776426639853,-745.46632711,8.69e-05,2]
[420650186,1776426640068,-50670.7166985,8.69e-05,2]
[420650187,1776426640079,-41736.37343625,8.69e-05,2]
[420650257,1776426640805,-685.0,8.69e-05,2]
[420650281,1776426641019,-0.0009024,8.69e-05,2]
[420650533,1776426645050,-22263.31067696,8.69e-05,2]
[420650537,1776426645077,-262.0,8.69e-05,2]
[420650660,1776426646321,-500.16837495,8.69e-05,2]
[420650752,1776426648188,-1134.61018745,8.69e-05,2]
[420650755,1776426674536,8538.28,8.282e-05,2]
[420650757,1776426724924,960.0,8.282e-05,3]
[420650758,1776426785447,339.73,8.282e-05,3]
[420650759,1776426785470,591.27,8.282e-05,3]
[420650760,1776426797573,163.0,8.282e-05,3]
[420650761,1776426798973,2000.0,8.172e-05,2]
[420650762,1776426845812,884.0,8.172e-05,3]
[420650763,1776426859280,163.0,8.172e-05,3]
[420650767,1776426907103,840.0,8.172e-05,3]
[420650768,1776426907866,150.0,8.172e-05,3]
[420650770,1776426974217,834.0,8.172e-05,3]
[420650771,1776427027115,793.0,8.172e-05,3]
[420650772,1776427048668,7383.01,7.793e-05,2]
[420650773,1776427048691,4054.03,7.793e-05,2]
[420650774,1776427057046,10000.01,7.788e-05,2]
[420650775,1776427057070,1141.01,7.788e-05,2]
[420650782,1776427092763,786.0,8.172e-05,3]
[420650783,1776427098378,8073.0,8e-05,2]
[420650784,1776427098405,1363.21796005,8e-05,2]
[420650785,1776427150325,746.0,8.172e-05,3]
[420650786,1776427207337,309.34214533,7.69e-05,2]
[420650787,1776427209828,247.87,0.00016027,30]
[420650788,1776427213139,158.0,8.172e-05,3]
[420650789,1776427214247,738.0,8.172e-05,3]
[420650791,1776427288459,500.0,7.743e-05,2]
[420650792,1776427303295,170.33,6.171e-05,2]
[420650793,1776427303439,170.33,6.943e-05,2]
[420650794,1776427303498,170.33,7.714e-05,2]
[420650796,1776427331212,715.0,8.172e-05,3]
[420650797,1776427416904,150.0,0.0001649,30]
[420650798,1776427419241,1600.0,7.705e-05,2]
[420650799,1776427439677,316.91463046,8.3e-05,2]
[420650800,1776427448325,691.0,8.172e-05,3]
[420650801,1776427502884,150.0,7.718e-05,2]
[420650802,1776427503573,150.0,7.735e-05,2]
[420650803,1776427503603,150.0,7.752e-05,2]
[420650804,1776427503654,150.0,7.769e-05,2]
[420650805,1776427503721,150.0,7.786e-05,2]
[420650806,1776427503769,150.0,7.804e-05,2]
[420650807,1776427503803,150.0,7.821e-05,2]
[420650808,1776427503853,150.0,7.838e-05,2]
[420650809,1776427503895,150.0,7.855e-05,2]
[420650810,1776427503979,150.0,7.872e-05,2]
[420650811,1776427504064,150.0,7.889e-05,2]
[420650812,1776427504118,150.0,7.906e-05,2]
[420650813,1776427504168,150.0,7.924e-05,2]
[420650814,1776427504204,150.0,7.941e-05,2]
[420650815,1776427504254,150.0,7.958e-05,2]
[420650816,1776427504298,101.54526416,7.975e-05,2]
[420650817,1776427504320,48.45473584,7.975e-05,2]
[420650818,1776427504363,150.0,7.992e-05,2]
[420650819,1776427504469,150.0,8.009e-05,2]
[420650820,1776427504558,150.0,8.027e-05,2]
[420650821,1776427504595,150.0,8.044e-05,2]
[420650822,1776427504655,150.0,8.061e-05,2]
[420650823,1776427504722,150.0,8.078e-05,2]
[420650824,1776427504792,150.0,8.095e-05,2]
[420650825,1776427504862,150.0,8.112e-05,2]
[420650826,1776427504924,150.0,8.129e-05,2]
[420650827,1776427504991,150.0,8.181e-05,2]
[420650828,1776427505047,150.0,8.164e-05,2]
[420650829,1776427505111,150.0,8.198e-05,2]
[420650830,1776427505177,150.0,8.147e-05,2]
[420650831,1776427505237,150.0,8.232e-05,2]
[420650832,1776427505294,150.0,8.249e-05,2]
[420650833,1776427505353,150.0,8.215e-05,2]
[420650834,1776427505403,150.0,8.267e-05,2]
[420650835,1776427505446,150.0,8.284e-05,2]
[420650836,1776427508660,682.0,8.172e-05,3]
[420650837,1776427508689,150.0,8.172e-05,3]
[420650838,1776427524674,150.0,7.718e-05,2]
[420650839,1776427524719,150.0,7.813e-05,2]
[420650840,1776427524790,150.0,7.908e-05,2]
[420650841,1776427524862,150.0,8.004e-05,2]
[420650842,1776427524938,150.0,8.099e-05,2]
[420650843,1776427525002,150.0,8.194e-05,2]
[420650844,1776427525082,150.0,8.289e-05,2]
[420650845,1776427526614,150.0,7.718e-05,2]
[420650846,1776427526681,150.0,7.784e-05,2]
[420650847,1776427526748,150.0,7.85e-05,2]
[420650848,1776427526818,150.0,7.916e-05,2]
[420650849,1776427526895,150.0,7.982e-05,2]
[420650850,1776427526962,150.0,8.048e-05,2]
[420650851,1776427527032,150.0,8.114e-05,2]
[420650852,1776427527103,150.0,8.18e-05,2]
[420650853,1776427527174,150.0,8.246e-05,2]
[420650854,1776427527599,150.13251298,7.718e-05,2]
[420650855,1776427529317,150.0,7.718e-05,2]
[420650856,1776427529347,150.0,7.84e-05,2]
[420650857,1776427529420,150.0,7.963e-05,2]
[420650858,1776427529476,150.0,8.085e-05,2]
[420650859,1776427529547,150.0,8.208e-05,2]
[420650860,1776427533214,150.0,7.718e-05,2]
[420650861,1776427533252,150.0,7.796e-05,2]
[420650862,1776427533287,150.0,7.874e-05,2]
[420650863,1776427533329,150.0,7.952e-05,2]
[420650864,1776427533381,150.0,8.108e-05,2]
[420650865,1776427533422,150.0,8.186e-05,2]
[420650866,1776427533475,150.0,8.264e-05,2]
[420650867,1776427533651,150.0,7.718e-05,2]
[420650868,1776427533693,150.0,7.932e-05,2]
[420650869,1776427533756,150.0,8.147e-05,2]
[420650870,1776427536518,150.0,7.718e-05,2]
[420650871,1776427542480,150.0,7.718e-05,2]
[420650872,1776427542520,150.0,7.84e-05,2]
[420650873,1776427545895,150.0,7.963e-05,2]
[420650874,1776427545932,150.0,8.085e-05,2]
[420650875,1776427545966,150.0,8.208e-05,2]
[420650876,1776427546035,150.0,7.718e-05,2]
[420650877,1776427546083,150.0,7.718e-05,2]
[420650878,1776427546687,400.0,8.078e-05,2]
[420650879,1776427546800,279.35,8.078e-05,2]
[420650880,1776427546881,150.0,7.718e-05,2]
[420650881,1776427546914,150.0,7.861e-05,2]
[420650882,1776427546953,150.0,8.004e-05,2]
[420650883,1776427546991,150.0,8.289e-05,2]
[420650884,1776427547032,150.0,8.147e-05,2]
[420650885,1776427548068,150.0,8.03e-05,2]
[420650886,1776427548715,201.29039859,7.718e-05,2]
[420650887,1776427549615,150.0,7.718e-05,2]
[420650888,1776427549651,150.0,8.289e-05,2]
[420650889,1776427549682,150.0,8.147e-05,2]
[420650890,1776427549853,150.0,8.004e-05,2]
[420650891,1776427550732,150.0,7.718e-05,2]
[420650892,1776427550768,150.0,7.861e-05,2]
[420650893,1776427550813,150.0,8.004e-05,2]
[420650894,1776427550849,150.0,8.147e-05,2]
[420650895,1776427550880,150.0,8.289e-05,2]
[420650896,1776427566320,37.23708843,8.219e-05,2]
[420650897,1776427566345,5304.10291157,8.219e-05,2]
[420650898,1776427567328,659.0,8.172e-05,3]
[420650899,1776427570831,150.0,7.861e-05,2]
[420650900,1776427588691,1852.42,7.484e-05,2]
[420650903,1776427627033,637.0,8.172e-05,3]
[420650904,1776427628458,5575.244449,7.945e-05,2]
[420650905,1776427659601,158.36,8.219e-05,2]
[420650906,1776427688388,605.0,8.172e-05,3]
[420650907,1776427728929,362.985551,7.485e-05,2]
[420650908,1776427728952,2077.534449,7.485e-05,2]
[420650909,1776427746132,-150.0,8.301e-05,2]
[420650910,1776427746156,-258.0,8.301e-05,2]
[420650911,1776427746176,-150.0,8.306e-05,2]
[420650912,1776427746199,-150.0,8.311e-05,2]
[420650913,1776427746223,-150.0,8.318e-05,2]
[420650914,1776427746247,-150.0,8.33e-05,2]
[420650915,1776427746271,-150.0,8.33e-05,2]
[420650916,1776427746292,-150.0,8.335e-05,2]
[420650917,1776427746317,-150.0,8.335e-05,2]
[420650918,1776427746338,-150.0,8.341e-05,2]
[420650919,1776427746358,-150.0,8.352e-05,2]
[420650920,1776427746379,-150.0,8.361e-05,2]
[420650921,1776427746402,-205.04,8.368e-05,2]
[420650922,1776427746422,-150.0,8.37e-05,2]
[420650923,1776427746445,-150.0,8.377e-05,2]
[420650924,1776427746468,-150.0,8.385e-05,2]
[420650925,1776427746489,-150.0,8.387e-05,2]
[420650926,1776427746511,-150.0,8.404e-05,2]
[420650927,1776427746534,-150.0,8.419e-05,2]
[420650928,1776427746555,-150.0,8.421e-05,2]
[420650929,1776427746579,-150.0,8.432e-05,2]
[420650930,1776427746604,-150.0,8.432e-05,2]
[420650931,1776427746627,-150.0,8.432e-05,2]
[420650932,1776427746651,-150.0,8.438e-05,2]
[420650933,1776427746672,-150.0,8.443e-05,2]
[420650934,1776427746692,-500.0,8.443e-05,2]
[420650935,1776427746713,-150.0,8.453e-05,2]
[420650936,1776427746734,-150.0,8.453e-05,2]
[420650937,1776427746755,-150.0,8.455e-05,2]
[420650938,1776427746778,-400.0,8.472e-05,2]
[420650939,1776427746803,-279.35,8.472e-05,2]
[420650940,1776427746823,-300.0,8.472e-05,2]
[420650941,1776427746844,-150.0,8.472e-05,2]
[420650942,1776427746865,-150.0,8.472e-05,2]
[420650943,1776427746887,-1122.903504,8.478e-05,2]
[420650944,1776427747970,-2826.337396,8.478e-05,2]
[420650945,1776427747993,-150.0,8.48e-05,2]
[420650946,1776427748015,-170.33,8.485e-05,2]
[420650947,1776427748038,-1200.0,8.487e-05,2]
[420650948,1776427748060,-1854.601,8.489e-05,2]
[420650949,1776427748090,-2564.665494,8.489e-05,2]
[420650950,1776427748174,586.0,8.172e-05,3]
[420650951,1776427752764,-17284.374506,8.489e-05,2]
[420650952,1776427752785,-1130.4377,8.489e-05,2]
[420650953,1776427752806,-2690.73,8.489e-05,2]
[420650954,1776427752827,-172.42901639,8.489e-05,2]
[420650955,1776427752849,-150.0,8.49e-05,2]
[420650956,1776427752871,-150.0,8.497e-05,2]
[420650957,1776427752892,-150.0,8.507e-05,2]
[420650958,1776427752915,-150.0,8.509e-05,2]
[420650959,1776427752936,-150.0,8.524e-05,2]
[420650960,1776427752956,-8061.46,8.536e-05,2]
[420650961,1776427752979,-150.0,8.541e-05,2]
[420650962,1776427753000,-500.0,8.541e-05,2]
[420650963,1776427753022,-150.0,8.558e-05,2]
[420650964,1776427753044,-356.64372369,8.563e-05,2]
[420650965,1776427753064,-199.81,8.563e-05,2]
[420650966,1776427753086,-501.3372433,8.563e-05,2]
[420650967,1776427753107,-500.0,8.563e-05,2]
[420650968,1776427753126,-500.20553032,8.563e-05,2]
[420650969,1776427753147,-500.0,8.563e-05,2]
[420650970,1776427753167,-500.0,8.563e-05,2]
[420650971,1776427753188,-500.0,8.563e-05,2]
[420650972,1776427753209,-153.09367327,8.575e-05,2]
[420650973,1776427753230,-150.0,8.575e-05,2]
[420650974,1776427753250,-153.49925976,8.575e-05,2]
[420650975,1776427753271,-150.68870467,8.575e-05,2]
[420650976,1776427753291,-152.88062368,8.575e-05,2]
[420650977,1776427753311,-150.7678493,8.575e-05,2]
[420650978,1776427753333,-157.60509149,8.575e-05,2]
[420650979,1776427753353,-151.06661038,8.575e-05,2]
[420650980,1776427753373,-151.03186045,8.575e-05,2]
[420650981,1776427753393,-166.05983851,8.575e-05,2]
[420650982,1776427753413,-257.61327442,8.575e-05,2]
[420650983,1776427753433,-153.80598328,8.575e-05,2]
[420650984,1776427753454,-211.96707201,8.575e-05,2]
[420650985,1776427753474,-24303.52098848,8.577e-05,2]
[420650986,1776427753494,-5366.6242906,8.578e-05,2]
[420650987,1776427774106,-1123.016594,8.389e-05,2]
[420650988,1776427815923,150.0,8.22e-05,2]
[420650991,1776427831527,-300.0,8.388e-05,2]
[420650992,1776427831537,-218.0,8.388e-05,2]
[420650993,1776427831546,-33501.34045218,8.389e-05,2]
[420650994,1776427831631,-399383.61145382,8.389e-05,2]
[420650995,1776427831642,-377.0,8.488e-05,2]
[420650996,1776427831653,-211.65034056,8.488e-05,2]
[420650997,1776427831662,-40995.6880267,8.533e-05,2]
[420650998,1776427831672,-500.0,8.563e-05,2]
[420650999,1776427831682,-500.0,8.563e-05,2]
[420651000,1776427831692,-500.0,8.563e-05,2]
[420651001,1776427831701,-377.68539666,8.563e-05,2]
[420651002,1776427831711,-500.0,8.563e-05,2]
[420651003,1776427831721,-500.0,8.563e-05,2]
[420651004,1776427831731,-57297.07994663,8.578e-05,2]
[420651005,1776427831741,-200.0,8.578e-05,2]
[420651006,1776427831751,-200.0,8.578e-05,2]
[420651007,1776427831760,-200.0,8.578e-05,2]
[420651008,1776427831771,-200.0,8.578e-05,2]
[420651009,1776427831781,-200.0,8.578e-05,2]
[420651010,1776427831791,-500.0,8.587e-05,2]
[420651012,1776427831801,-500.0,8.587e-05,2]
[420651015,1776427831811,-500.0,8.587e-05,2]
[420651017,1776427831821,-500.0,8.587e-05,2]
[420651019,1776427831831,-500.0,8.587e-05,2]
[420651020,1776427831841,-500.0,8.587e-05,2]
[420651021,1776427831851,-500.0,8.587e-05,2]
[420651022,1776427831860,-500.0,8.587e-05,2]
[420651023,1776427831870,-447.66954224,8.587e-05,2]
[420651024,1776427831880,-500.0,8.587e-05,2]
[420651025,1776427831890,-500.0,8.587e-05,2]
[420651026,1776427831900,-500.0,8.587e-05,2]
[420651027,1776427831910,-500.0,8.587e-05,2]
[420651028,1776427831919,-500.0,8.587e-05,2]
[420651030,1776427831929,-500.0,8.587e-05,2]
[420651031,1776427831938,-500.0,8.587e-05,2]
[420651032,1776427831947,-500.0,8.587e-05,2]
[420651033,1776427831957,-500.0,8.587e-05,2]
[420651034,1776427831970,-500.0,8.587e-05,2]
[420651035,1776427831981,-500.0,8.587e-05,2]
[420651036,1776427831991,-500.0,8.587e-05,2]
[420651037,1776427832001,-500.0,8.587e-05,2]
[420651038,1776427832011,-500.0,8.587e-05,2]
[420651039,1776427832027,-500.0,8.587e-05,2]
[420651040,1776427832038,-500.0,8.587e-05,2]
[420651041,1776427832049,-500.0,8.587e-05,2]
[420651042,1776427832060,-500.0,8.587e-05,2]
[420651043,1776427832070,-500.0,8.587e-05,2]
[420651044,1776427832080,-197.0795029,8.587e-05,2]
[420651045,1776427832090,-500.0,8.587e-05,2]
[420651046,1776427832100,-500.0,8.587e-05,2]
[420651047,1776427832110,-500.0,8.587e-05,2]
[420651048,1776427832121,-500.0,8.587e-05,2]
[420651049,1776427832133,-500.0,8.587e-05,2]
[420651050,1776427832145,-500.0,8.587e-05,2]
[420651051,1776427832156,-500.0,8.587e-05,2]
[420651052,1776427832166,-500.0,8.587e-05,2]
[420651053,1776427832175,-500.0,8.587e-05,2]
[420651054,1776427832186,-500.0,8.587e-05,2]
[420651055,1776427832195,-500.0,8.587e-05,2]
[420651056,1776427832205,-350.0,8.587e-05,2]
[420651057,1776427832216,-500.0,8.587e-05,2]
[420651058,1776427832226,-500.0,8.587e-05,2]
[420651059,1776427832236,-173404.41661416,8.588e-05,2]
[420651060,1776427832245,-150.0,8.588e-05,2]
[420651061,1776427832255,-375.874696,8.589e-05,2]
[420651062,1776427832265,-375.874696,8.589e-05,2]
[420651063,1776427832777,-375.874696,8.589e-05,2]
[420651064,1776427832818,-375.874696,8.589e-05,2]
[420651065,1776427832828,-250.0,8.589e-05,2]
[420651066,1776427832837,-448.709097,8.589e-05,2]
[420651067,1776427832847,-448.709097,8.589e-05,2]
[420651068,1776427832856,-448.709097,8.589e-05,2]
[420651069,1776427832866,-448.709097,8.589e-05,2]
[420651070,1776427832876,-332955.82845678,8.589e-05,2]
[420651071,1776427832889,-47685.69539106,8.589e-05,2]
[420651072,1776427832900,-64060.87397203,8.589e-05,2]
[420651073,1776427832912,-1254.41808677,8.589e-05,2]
[420651074,1776427832954,-366.0,8.589e-05,2]
[420651115,1776427838780,-50670.7166985,8.589e-05,2]
[420651116,1776427838791,-41736.37343625,8.589e-05,2]
[420651117,1776427838805,-8093.27849261,8.589e-05,2]
[420651121,1776427840062,-483.24260311,8.589e-05,2]
[420651122,1776427840306,-18681.06270655,8.589e-05,2]
[420651128,1776427842716,-235221.95308638,8.589e-05,2]
[420651131,1776427845636,-309.05624172,8.388e-05,2]
[420651132,1776427845647,-198.47307716,8.388e-05,2]
[420651133,1776427845656,-500.0,8.388e-05,2]
[420651134,1776427845666,-105.74640451,8.388e-05,2]